[Event "*** SCC Grand Prix: Titled Tuesday Blitz"]
[Site "Chess.com"]
[Date "2020.07.07"]
[Round "3"]
[White "volkanyirik"]
[Black "ChessArchitect64"]
[Result "1-0"]
[WhiteElo "2243"]
[BlackElo "1873"]
[TimeControl "180+1"]
[EndTime "10:28:54 PDT"]
[Termination "volkanyirik won on time"]

1. e4 {[%clk 0:03:00.9]} 1... c5 {[%clk 0:02:59.4]} 2. Nc3 {[%clk 0:03:01.4]}
2... Nc6 {[%clk 0:02:58.8]} 3. f4 {[%clk 0:03:01.2]} 3... g6 {[%clk 0:02:58.1]}
4. Bc4 {[%clk 0:03:01.8]} 4... Bg7 {[%clk 0:02:57.2]} 5. d3 {[%clk 0:03:02.7]}
5... e6 {[%clk 0:02:56.9]} 6. Nf3 {[%clk 0:03:02.6]} 6... Nge7 {[%clk
0:02:56.2]} 7. O-O {[%clk 0:03:03.2]} 7... O-O {[%clk 0:02:55.7]} 8. Qe1 {[%clk
0:03:03.7]} 8... d5 {[%clk 0:02:43.7]} 9. Bb3 {[%clk 0:03:03.9]} 9... b5 {[%clk
0:02:39.7]} 10. Nxb5 {[%clk 0:03:03.1]} 10... Qb6 {[%clk 0:02:38]} 11. c4 {[%clk
0:03:02.5]} 11... a6 {[%clk 0:02:26.7]} 12. Nc3 {[%clk 0:03:01.9]} 12... Nd4
{[%clk 0:02:18.9]} 13. Nxd4 {[%clk 0:02:49.9]} 13... cxd4 {[%clk 0:02:08.7]} 14.
Na4 {[%clk 0:02:48.7]} 14... Qc7 {[%clk 0:01:53]} 15. exd5 {[%clk 0:02:43.3]}
15... exd5 {[%clk 0:01:50.9]} 16. Bd2 {[%clk 0:02:43.2]} 16... Nf5 {[%clk
0:01:47.3]} 17. cxd5 {[%clk 0:02:38.8]} 17... Bd7 {[%clk 0:01:43.6]} 18. Ba5
{[%clk 0:02:31.5]} 18... Qb7 {[%clk 0:01:21]} 19. Nb6 {[%clk 0:02:29.6]} 19...
Rae8 {[%clk 0:01:18.4]} 20. Qd2 {[%clk 0:02:21.9]} 20... Bb5 {[%clk 0:01:15]}
21. Nc4 {[%clk 0:02:12.8]} 21... Bxc4 {[%clk 0:01:08]} 22. dxc4 {[%clk
0:02:11.7]} 22... Re3 {[%clk 0:01:07.6]} 23. c5 {[%clk 0:02:05.3]} 23... Rfe8
{[%clk 0:01:04.7]} 24. c6 {[%clk 0:02:05.6]} 24... Qe7 {[%clk 0:00:59.8]} 25.
Bb4 {[%clk 0:02:02.8]} 25... Qh4 {[%clk 0:00:57.2]} 26. Bc4 {[%clk 0:01:54]}
26... d3 {[%clk 0:00:12.4]} 27. d6 {[%clk 0:01:46.5]} 27... Bd4 {[%clk
0:00:10.4]} 28. d7 {[%clk 0:00:54.9]} 28... Re2+ {[%clk 0:00:09.3]} 29. Rf2
{[%clk 0:00:55.1]} 29... Bxf2+ {[%clk 0:00:07.8]} 30. Kf1 {[%clk 0:00:53.4]}
30... Rd8 {[%clk 0:00:06.3]} 31. Qxd3 {[%clk 0:00:50.9]} 31... Ne3+ {[%clk
0:00:06]} 32. Qxe3 {[%clk 0:00:47.9]} 32... Bxe3 {[%clk 0:00:06]} 33. Kxe2
{[%clk 0:00:47]} 33... Qf2+ {[%clk 0:00:06.2]} 34. Kd3 {[%clk 0:00:46.7]} 34...
Bb6 {[%clk 0:00:06.2]} 35. Bc3 {[%clk 0:00:41]} 35... Qe3+ {[%clk 0:00:05.9]}
36. Kc2 {[%clk 0:00:40.6]} 36... Bc7 {[%clk 0:00:04.9]} 37. Re1 {[%clk
0:00:39.8]} 37... Qxf4 {[%clk 0:00:04.4]} 38. Re8+ {[%clk 0:00:39.2]} 1-0

[Event "*** SCC Grand Prix: Titled Tuesday Blitz"]
[Site "Chess.com"]
[Date "2020.07.07"]
[Round "3"]
[White "MomchilPetkov"]
[Black "Grandelicious"]
[Result "0-1"]
[WhiteElo "2545"]
[BlackElo "2777"]
[TimeControl "180+1"]
[EndTime "10:28:55 PDT"]
[Termination "Grandelicious won by resignation"]

1. e4 {[%clk 0:03:00.9]} 1... c6 {[%clk 0:02:59.3]} 2. d4 {[%clk 0:03:00.4]}
2... d5 {[%clk 0:02:59.5]} 3. e5 {[%clk 0:03:00.6]} 3... c5 {[%clk 0:02:57.8]}
4. dxc5 {[%clk 0:02:59.8]} 4... e6 {[%clk 0:02:57.5]} 5. a3 {[%clk 0:03:00]}
5... Bxc5 {[%clk 0:02:56.2]} 6. Nf3 {[%clk 0:03:00]} 6... Ne7 {[%clk 0:02:46]}
7. Bd3 {[%clk 0:02:56.3]} 7... Ng6 {[%clk 0:02:39.6]} 8. b4 {[%clk 0:02:55.2]}
8... Bb6 {[%clk 0:02:36.5]} 9. O-O {[%clk 0:02:53.9]} 9... a5 {[%clk 0:02:33.8]}
10. Bb2 {[%clk 0:02:37]} 10... axb4 {[%clk 0:02:27.2]} 11. axb4 {[%clk
0:02:37.9]} 11... Rxa1 {[%clk 0:02:27.8]} 12. Bxa1 {[%clk 0:02:37.8]} 12... O-O
{[%clk 0:02:26]} 13. Re1 {[%clk 0:02:31.3]} 13... Nd7 {[%clk 0:01:45.5]} 14. Nc3
{[%clk 0:02:09.7]} 14... Nh4 {[%clk 0:01:36.4]} 15. Nb5 {[%clk 0:01:59.4]} 15...
Nxf3+ {[%clk 0:01:22.2]} 16. Qxf3 {[%clk 0:01:58.2]} 16... Qh4 {[%clk
0:01:21.9]} 17. Bc3 {[%clk 0:01:05.7]} 17... f6 {[%clk 0:01:13]} 18. g3 {[%clk
0:01:02.2]} 18... Qh6 {[%clk 0:01:05.6]} 19. exf6 {[%clk 0:00:43.7]} 19... Nxf6
{[%clk 0:01:06.5]} 20. Bd4 {[%clk 0:00:30]} 20... Bxd4 {[%clk 0:00:50.2]} 21.
Nxd4 {[%clk 0:00:29.7]} 21... e5 {[%clk 0:00:27.8]} 22. Rxe5 {[%clk 0:00:21.8]}
22... Ng4 {[%clk 0:00:23.6]} 23. Qxd5+ {[%clk 0:00:19.1]} 23... Kh8 {[%clk
0:00:20.6]} 24. Rh5 {[%clk 0:00:09.2]} 24... Qc1+ {[%clk 0:00:17.5]} 25. Bf1
{[%clk 0:00:09.4]} 25... Nf6 {[%clk 0:00:14.6]} 26. Qf3 {[%clk 0:00:07.4]} 26...
Bg4 {[%clk 0:00:14.1]} 27. Qf4 {[%clk 0:00:02.1]} 27... Qxf4 {[%clk 0:00:13.5]}
28. gxf4 {[%clk 0:00:03]} 28... Nxh5 {[%clk 0:00:13]} 29. Ne6 {[%clk 0:00:03.9]}
29... Bxe6 {[%clk 0:00:12.5]} 0-1

[Event "*** SCC Grand Prix: Titled Tuesday Blitz"]
[Site "Chess.com"]
[Date "2020.07.07"]
[Round "3"]
[White "Jospem"]
[Black "Kopytkin"]
[Result "1-0"]
[WhiteElo "2893"]
[BlackElo "2455"]
[TimeControl "180+1"]
[EndTime "10:28:55 PDT"]
[Termination "Jospem won on time"]

1. e4 {[%clk 0:03:00.9]} 1... Nf6 {[%clk 0:03:00]} 2. e5 {[%clk 0:02:57]} 2...
Nd5 {[%clk 0:03:00.2]} 3. d4 {[%clk 0:02:56.7]} 3... d6 {[%clk 0:03:00.5]} 4.
Nf3 {[%clk 0:02:54.8]} 4... g6 {[%clk 0:03:00.3]} 5. Be2 {[%clk 0:02:52.1]} 5...
Bg7 {[%clk 0:03:00.2]} 6. O-O {[%clk 0:02:52.6]} 6... O-O {[%clk 0:03:00.3]} 7.
c4 {[%clk 0:02:51.7]} 7... Nb6 {[%clk 0:03:00.4]} 8. exd6 {[%clk 0:02:51.7]}
8... cxd6 {[%clk 0:03:01.3]} 9. h3 {[%clk 0:02:50.1]} 9... Nc6 {[%clk
0:02:51.5]} 10. d5 {[%clk 0:02:47.6]} 10... Na5 {[%clk 0:02:51.5]} 11. Na3
{[%clk 0:02:30.5]} 11... Qc7 {[%clk 0:02:42.1]} 12. Nb5 {[%clk 0:02:06.4]} 12...
Qd8 {[%clk 0:02:38.7]} 13. Nd2 {[%clk 0:01:32.3]} 13... Bd7 {[%clk 0:02:24.3]}
14. Na3 {[%clk 0:01:27]} 14... Rc8 {[%clk 0:02:03.6]} 15. Bd3 {[%clk 0:01:12.9]}
15... Na4 {[%clk 0:01:30]} 16. Rb1 {[%clk 0:01:10.2]} 16... a6 {[%clk
0:01:07.4]} 17. Qf3 {[%clk 0:00:50.4]} 17... e5 {[%clk 0:00:19.8]} 18. b4 {[%clk
0:00:40.8]} 18... Nc3 {[%clk 0:00:19.9]} 19. bxa5 {[%clk 0:00:37.2]} 19... Nxb1
{[%clk 0:00:19.6]} 20. Naxb1 {[%clk 0:00:35.9]} 20... f5 {[%clk 0:00:20]} 21.
Qe3 {[%clk 0:00:29.1]} 21... Qxa5 {[%clk 0:00:19.9]} 22. Ba3 {[%clk 0:00:25.1]}
22... f4 {[%clk 0:00:11.5]} 23. Qe2 {[%clk 0:00:22.2]} 23... Qc7 {[%clk
0:00:10.3]} 24. Ne4 {[%clk 0:00:21.6]} 24... f3 {[%clk 0:00:07.9]} 25. Qe3
{[%clk 0:00:18.7]} 25... fxg2 {[%clk 0:00:05.6]} 26. Kxg2 {[%clk 0:00:19.6]}
26... Rf6 {[%clk 0:00:03.3]} 27. Nxf6+ {[%clk 0:00:19.3]} 27... Bxf6 {[%clk
0:00:04.2]} 28. Nd2 {[%clk 0:00:19.8]} 28... Rf8 {[%clk 0:00:04]} 29. Ne4 {[%clk
0:00:19.7]} 29... Be7 {[%clk 0:00:04.6]} 30. f4 {[%clk 0:00:19.4]} 30... Bf5
{[%clk 0:00:03.1]} 31. fxe5 {[%clk 0:00:18.7]} 31... dxe5 {[%clk 0:00:03.6]} 32.
Bxe7 {[%clk 0:00:19.3]} 32... Qxe7 {[%clk 0:00:03.4]} 33. Ng3 {[%clk 0:00:19.7]}
1-0

[Event "*** SCC Grand Prix: Titled Tuesday Blitz"]
[Site "Chess.com"]
[Date "2020.07.07"]
[Round "3"]
[White "BJthechessgod"]
[Black "Stronger1799"]
[Result "1-0"]
[WhiteElo "2328"]
[BlackElo "2508"]
[TimeControl "180+1"]
[EndTime "10:28:57 PDT"]
[Termination "BJthechessgod won by resignation"]

1. e4 {[%clk 0:03:00.9]} 1... c5 {[%clk 0:02:59.8]} 2. Nf3 {[%clk 0:03:00.4]}
2... e6 {[%clk 0:03:00.1]} 3. d4 {[%clk 0:03:00.3]} 3... cxd4 {[%clk 0:03:01]}
4. Nxd4 {[%clk 0:03:01]} 4... Nf6 {[%clk 0:03:01.9]} 5. Nc3 {[%clk 0:03:00.8]}
5... d6 {[%clk 0:03:02.5]} 6. Bc4 {[%clk 0:02:57.3]} 6... Nc6 {[%clk 0:03:01.8]}
7. Be3 {[%clk 0:02:56.6]} 7... Be7 {[%clk 0:03:01.5]} 8. O-O {[%clk 0:02:55.5]}
8... O-O {[%clk 0:03:00.8]} 9. f4 {[%clk 0:02:54.8]} 9... a6 {[%clk 0:02:59.4]}
10. Bb3 {[%clk 0:02:55]} 10... Na5 {[%clk 0:02:59.6]} 11. Qf3 {[%clk 0:02:54.2]}
11... Qc7 {[%clk 0:02:52.6]} 12. Rae1 {[%clk 0:02:52.2]} 12... Nxb3 {[%clk
0:02:42.9]} 13. axb3 {[%clk 0:02:48.6]} 13... b5 {[%clk 0:02:42.4]} 14. e5
{[%clk 0:02:34.4]} 14... dxe5 {[%clk 0:02:26.6]} 15. fxe5 {[%clk 0:02:27.7]}
15... Nd7 {[%clk 0:01:39.2]} 16. Qxa8 {[%clk 0:01:54.3]} 16... Bb7 {[%clk
0:01:38.3]} 17. Ncxb5 {[%clk 0:01:45.7]} 17... axb5 {[%clk 0:01:36.3]} 18. Qa1
{[%clk 0:01:38.8]} 18... Qxe5 {[%clk 0:01:28.8]} 19. Bf2 {[%clk 0:01:21.2]}
19... Qg5 {[%clk 0:01:18.7]} 20. Bg3 {[%clk 0:00:50.4]} 20... Bc5 {[%clk
0:01:18.1]} 21. c3 {[%clk 0:00:50]} 21... e5 {[%clk 0:01:16.6]} 22. b4 {[%clk
0:00:42.1]} 22... Bb6 {[%clk 0:01:14.5]} 23. Qa2 {[%clk 0:00:21.3]} 23... exd4
{[%clk 0:01:03.6]} 24. Re8 {[%clk 0:00:18]} 24... Bd5 {[%clk 0:00:26]} 25. Rxf8+
{[%clk 0:00:15.7]} 25... Nxf8 {[%clk 0:00:26.9]} 26. Qa6 {[%clk 0:00:15]} 26...
Qg6 {[%clk 0:00:20.9]} 27. Qxb5 {[%clk 0:00:14.5]} 27... dxc3+ {[%clk
0:00:20.4]} 28. Kh1 {[%clk 0:00:13.5]} 28... cxb2 {[%clk 0:00:15.2]} 29. Qxd5
{[%clk 0:00:09.4]} 29... b1=Q {[%clk 0:00:14.8]} 30. Qf3 {[%clk 0:00:05.2]}
30... Qgd3 {[%clk 0:00:10.5]} 31. Qxf7+ {[%clk 0:00:05.2]} 1-0

[Event "*** SCC Grand Prix: Titled Tuesday Blitz"]
[Site "Chess.com"]
[Date "2020.07.07"]
[Round "3"]
[White "Lion-Al-Messi"]
[Black "tigra"]
[Result "0-1"]
[WhiteElo "2441"]
[BlackElo "2786"]
[TimeControl "180+1"]
[EndTime "10:28:58 PDT"]
[Termination "tigra won by resignation"]

1. e4 {[%clk 0:03:00.9]} 1... c5 {[%clk 0:02:59.7]} 2. Nf3 {[%clk 0:03:01.3]}
2... d6 {[%clk 0:02:59.9]} 3. d4 {[%clk 0:03:01.8]} 3... cxd4 {[%clk 0:03:00.8]}
4. Nxd4 {[%clk 0:03:02.4]} 4... Nf6 {[%clk 0:03:01.5]} 5. Nc3 {[%clk 0:03:03]}
5... a6 {[%clk 0:03:02.2]} 6. h3 {[%clk 0:03:03.6]} 6... e5 {[%clk 0:03:01.6]}
7. Nde2 {[%clk 0:03:03.2]} 7... h6 {[%clk 0:03:01.4]} 8. g4 {[%clk 0:03:02.4]}
8... b5 {[%clk 0:03:00.7]} 9. Bg2 {[%clk 0:03:02.2]} 9... Bb7 {[%clk 0:03:01.2]}
10. O-O {[%clk 0:03:01]} 10... Be7 {[%clk 0:03:01.2]} 11. Ng3 {[%clk 0:03:00.8]}
11... g6 {[%clk 0:03:00.2]} 12. Be3 {[%clk 0:03:00]} 12... Nbd7 {[%clk
0:03:00.1]} 13. Qd2 {[%clk 0:02:58.9]} 13... h5 {[%clk 0:03:00.5]} 14. g5 {[%clk
0:02:58.1]} 14... Nh7 {[%clk 0:03:00.2]} 15. h4 {[%clk 0:02:58.3]} 15... Nhf8
{[%clk 0:03:00.9]} 16. Rad1 {[%clk 0:02:52.4]} 16... Ne6 {[%clk 0:03:00.9]} 17.
Nd5 {[%clk 0:02:40.6]} 17... Bxd5 {[%clk 0:03:00.8]} 18. exd5 {[%clk 0:02:41.5]}
18... Nf4 {[%clk 0:02:45]} 19. Bxf4 {[%clk 0:02:40.3]} 19... exf4 {[%clk
0:02:45.9]} 20. Qxf4 {[%clk 0:02:40.9]} 20... Rc8 {[%clk 0:02:41.8]} 21. c3
{[%clk 0:02:36]} 21... Rc4 {[%clk 0:02:41.8]} 22. Rd4 {[%clk 0:02:35.6]} 22...
Ne5 {[%clk 0:02:39.5]} 23. Re1 {[%clk 0:02:31.9]} 23... O-O {[%clk 0:02:34.6]}
24. Be4 {[%clk 0:02:23.8]} 24... Re8 {[%clk 0:02:27]} 25. Rxc4 {[%clk
0:02:21.5]} 25... Nxc4 {[%clk 0:02:21.6]} 26. Bf3 {[%clk 0:01:39.9]} 26... Nxb2
{[%clk 0:02:03.7]} 27. Ne4 {[%clk 0:01:36]} 27... Nd3 {[%clk 0:01:59.6]} 28.
Nf6+ {[%clk 0:01:36]} 28... Kf8 {[%clk 0:01:44.9]} 29. Rxe7 {[%clk 0:00:09.4]}
29... Rxe7 {[%clk 0:01:36.2]} 30. Qd4 {[%clk 0:00:09.6]} 30... Re1+ {[%clk
0:01:31.5]} 31. Kg2 {[%clk 0:00:08.8]} 31... Ne5 {[%clk 0:01:32]} 32. Be4 {[%clk
0:00:08.9]} 32... Qc8 {[%clk 0:01:15.8]} 33. f4 {[%clk 0:00:08.1]} 33... Re2+
{[%clk 0:01:07.9]} 34. Kg3 {[%clk 0:00:06.8]} 34... Ng4 {[%clk 0:00:29.3]} 35.
Bf3 {[%clk 0:00:07]} 35... Re3 {[%clk 0:00:29.4]} 36. Nxg4 {[%clk 0:00:05]}
36... Qxg4+ {[%clk 0:00:29]} 37. Kh2 {[%clk 0:00:03.6]} 0-1

[Event "*** SCC Grand Prix: Titled Tuesday Blitz"]
[Site "Chess.com"]
[Date "2020.07.07"]
[Round "3"]
[White "JoliyRoger"]
[Black "elohunter1999"]
[Result "0-1"]
[WhiteElo "2254"]
[BlackElo "2453"]
[TimeControl "180+1"]
[EndTime "10:28:58 PDT"]
[Termination "elohunter1999 won by resignation"]

1. Nf3 {[%clk 0:03:00.9]} 1... Nf6 {[%clk 0:02:54]} 2. c4 {[%clk 0:03:00.5]}
2... e6 {[%clk 0:02:52.9]} 3. Nc3 {[%clk 0:02:59.9]} 3... d5 {[%clk 0:02:52.9]}
4. cxd5 {[%clk 0:03:00.3]} 4... exd5 {[%clk 0:02:52.8]} 5. d4 {[%clk 0:03:00.9]}
5... c6 {[%clk 0:02:50.5]} 6. Bg5 {[%clk 0:03:01.3]} 6... Be7 {[%clk 0:02:46.8]}
7. Bxf6 {[%clk 0:03:01.6]} 7... Bxf6 {[%clk 0:02:46.7]} 8. Qc2 {[%clk
0:03:02.4]} 8... O-O {[%clk 0:02:46.4]} 9. e3 {[%clk 0:03:03]} 9... Re8 {[%clk
0:02:43.5]} 10. Bd3 {[%clk 0:03:03.4]} 10... h6 {[%clk 0:02:39.5]} 11. h3 {[%clk
0:03:03.4]} 11... Nd7 {[%clk 0:02:38.8]} 12. O-O {[%clk 0:03:03.9]} 12... Nf8
{[%clk 0:02:38.9]} 13. b4 {[%clk 0:03:04.4]} 13... a6 {[%clk 0:02:38.2]} 14. a4
{[%clk 0:03:04.6]} 14... a5 {[%clk 0:02:31]} 15. b5 {[%clk 0:03:04.4]} 15... Be7
{[%clk 0:02:28.1]} 16. bxc6 {[%clk 0:03:04]} 16... bxc6 {[%clk 0:02:28.4]} 17.
Rac1 {[%clk 0:02:58]} 17... Bd7 {[%clk 0:02:16.8]} 18. Ne2 {[%clk 0:02:43.2]}
18... Bd6 {[%clk 0:02:13.8]} 19. Bf5 {[%clk 0:02:37.1]} 19... Ne6 {[%clk
0:02:11.9]} 20. Rfd1 {[%clk 0:02:26.3]} 20... Qf6 {[%clk 0:02:11.5]} 21. Bd3
{[%clk 0:01:41.1]} 21... Ng5 {[%clk 0:02:05.5]} 22. Nxg5 {[%clk 0:01:40.5]}
22... Qxg5 {[%clk 0:02:05]} 23. Kf1 {[%clk 0:01:39.5]} 23... Rab8 {[%clk
0:01:37.6]} 24. Rb1 {[%clk 0:01:39.1]} 24... Rb4 {[%clk 0:01:28.4]} 25. Rxb4
{[%clk 0:01:31.5]} 25... Bxb4 {[%clk 0:01:27.7]} 26. Ng3 {[%clk 0:01:14.7]}
26... g6 {[%clk 0:01:25.7]} 27. e4 {[%clk 0:00:53.7]} 27... h5 {[%clk
0:01:20.9]} 28. e5 {[%clk 0:00:36.3]} 28... Rc8 {[%clk 0:01:14]} 29. Ne2 {[%clk
0:00:31.1]} 29... c5 {[%clk 0:01:10.3]} 30. dxc5 {[%clk 0:00:25.5]} 30... Qxe5
{[%clk 0:01:03.8]} 31. Bb5 {[%clk 0:00:13]} 31... Rxc5 {[%clk 0:00:55.5]} 32.
Qd3 {[%clk 0:00:13]} 32... Bf5 {[%clk 0:00:54.9]} 33. Qf3 {[%clk 0:00:10.9]}
33... Be4 {[%clk 0:00:42.1]} 34. Qe3 {[%clk 0:00:11.1]} 34... Qh2 {[%clk
0:00:36.8]} 35. f3 {[%clk 0:00:10.2]} 35... Bf5 {[%clk 0:00:36.6]} 36. Ng1
{[%clk 0:00:08.6]} 36... Rc2 {[%clk 0:00:32.6]} 37. Be2 {[%clk 0:00:06.3]} 37...
Bc5 {[%clk 0:00:29.6]} 38. Qe8+ {[%clk 0:00:04.7]} 38... Kg7 {[%clk 0:00:29.2]}
0-1

[Event "*** SCC Grand Prix: Titled Tuesday Blitz"]
[Site "Chess.com"]
[Date "2020.07.07"]
[Round "3"]
[White "Legendinunknown"]
[Black "Region_07"]
[Result "1-0"]
[WhiteElo "2559"]
[BlackElo "2364"]
[TimeControl "180+1"]
[EndTime "10:28:59 PDT"]
[Termination "Legendinunknown won on time"]

1. e4 {[%clk 0:03:00.9]} 1... Nc6 {[%clk 0:02:58.2]} 2. Nf3 {[%clk 0:03:00.5]}
2... d6 {[%clk 0:02:54.5]} 3. Bc4 {[%clk 0:02:57.4]} 3... Nf6 {[%clk 0:02:51.9]}
4. Nc3 {[%clk 0:02:56.9]} 4... g6 {[%clk 0:02:51.1]} 5. d4 {[%clk 0:02:56]} 5...
Bg7 {[%clk 0:02:50.6]} 6. O-O {[%clk 0:02:51.8]} 6... O-O {[%clk 0:02:48.8]} 7.
d5 {[%clk 0:02:44.2]} 7... Nb8 {[%clk 0:02:46.8]} 8. h3 {[%clk 0:02:42.9]} 8...
Nbd7 {[%clk 0:02:43.5]} 9. Be3 {[%clk 0:02:42.4]} 9... c6 {[%clk 0:02:37.8]} 10.
Qd2 {[%clk 0:02:40]} 10... b5 {[%clk 0:02:31.3]} 11. Bb3 {[%clk 0:02:17.5]}
11... b4 {[%clk 0:02:29.8]} 12. Ne2 {[%clk 0:02:15.5]} 12... Nxe4 {[%clk
0:02:14.1]} 13. Qxb4 {[%clk 0:02:14.9]} 13... cxd5 {[%clk 0:02:04.6]} 14. Bxd5
{[%clk 0:02:13.3]} 14... Ba6 {[%clk 0:01:36.8]} 15. Rfe1 {[%clk 0:02:11.5]}
15... Nec5 {[%clk 0:01:28.3]} 16. Bxa8 {[%clk 0:02:06.8]} 16... Qxa8 {[%clk
0:01:29.2]} 17. Bd4 {[%clk 0:02:07]} 17... Rb8 {[%clk 0:01:17.3]} 18. Qa3 {[%clk
0:02:05.2]} 18... e5 {[%clk 0:01:07.9]} 19. Bc3 {[%clk 0:02:02.8]} 19... Bb7
{[%clk 0:00:55.5]} 20. Ba5 {[%clk 0:01:33.1]} 20... Bxf3 {[%clk 0:00:48.4]} 21.
gxf3 {[%clk 0:01:33.6]} 21... Qd5 {[%clk 0:00:32.1]} 22. Rad1 {[%clk 0:01:24.9]}
22... Qe6 {[%clk 0:00:31.5]} 23. Kg2 {[%clk 0:01:24.5]} 23... Rc8 {[%clk
0:00:16.2]} 24. Bc3 {[%clk 0:01:10.3]} 24... Nf6 {[%clk 0:00:15.8]} 25. Ng3
{[%clk 0:01:06.6]} 25... Qe7 {[%clk 0:00:12.5]} 26. f4 {[%clk 0:01:05.4]} 26...
Ne6 {[%clk 0:00:11]} 27. fxe5 {[%clk 0:01:03.5]} 27... Nf4+ {[%clk 0:00:10.7]}
28. Kf3 {[%clk 0:00:54.5]} 28... N6h5 {[%clk 0:00:10.5]} 29. Qxd6 {[%clk
0:00:52]} 29... Qb7+ {[%clk 0:00:09.9]} 30. Ke3 {[%clk 0:00:51.2]} 30... Re8
{[%clk 0:00:05.1]} 31. Kd2 {[%clk 0:00:50.2]} 31... Bh6 {[%clk 0:00:03.6]} 32.
Nxh5 {[%clk 0:00:42.9]} 32... Nxh5+ {[%clk 0:00:03.1]} 33. Re3 {[%clk
0:00:42.7]} 33... Qg2 {[%clk 0:00:02.3]} 34. Kc1 {[%clk 0:00:36.4]} 34... Qxf2
{[%clk 0:00:01.7]} 35. Qd7 {[%clk 0:00:33.5]} 35... Bxe3+ {[%clk 0:00:02.6]} 36.
Kb1 {[%clk 0:00:32.7]} 36... Rf8 {[%clk 0:00:02.9]} 37. e6 {[%clk 0:00:32.3]}
1-0

[Event "*** SCC Grand Prix: Titled Tuesday Blitz"]
[Site "Chess.com"]
[Date "2020.07.07"]
[Round "3"]
[White "Artem_Sadovsky"]
[Black "Rodchenkov_Vitalij"]
[Result "0-1"]
[WhiteElo "2536"]
[BlackElo "2377"]
[TimeControl "180+1"]
[EndTime "10:28:59 PDT"]
[Termination "Rodchenkov_Vitalij won on time"]

1. Nf3 {[%clk 0:03:00.8]} 1... Nf6 {[%clk 0:02:59.4]} 2. g3 {[%clk 0:03:01.7]}
2... d5 {[%clk 0:02:57]} 3. Bg2 {[%clk 0:03:02.6]} 3... Bg4 {[%clk 0:02:53.6]}
4. O-O {[%clk 0:03:03.5]} 4... Nbd7 {[%clk 0:02:50.8]} 5. b3 {[%clk 0:03:02.4]}
5... e6 {[%clk 0:02:45.7]} 6. Bb2 {[%clk 0:03:02.5]} 6... Bd6 {[%clk 0:02:41.5]}
7. c4 {[%clk 0:02:56.7]} 7... c6 {[%clk 0:02:40.2]} 8. d3 {[%clk 0:02:56.6]}
8... O-O {[%clk 0:02:38.6]} 9. Nbd2 {[%clk 0:02:56]} 9... Qc7 {[%clk 0:02:34.9]}
10. Qc2 {[%clk 0:02:54.7]} 10... Rac8 {[%clk 0:02:29.6]} 11. e4 {[%clk
0:02:53.2]} 11... Rfd8 {[%clk 0:02:16.5]} 12. h3 {[%clk 0:02:38.3]} 12... Bh5
{[%clk 0:02:09.4]} 13. e5 {[%clk 0:02:16.8]} 13... Bxe5 {[%clk 0:01:59.1]} 14.
Nxe5 {[%clk 0:02:11.2]} 14... Nxe5 {[%clk 0:01:58.8]} 15. cxd5 {[%clk
0:02:11.8]} 15... exd5 {[%clk 0:01:53.1]} 16. Rae1 {[%clk 0:02:08.3]} 16... Re8
{[%clk 0:01:47.2]} 17. f4 {[%clk 0:02:06.2]} 17... Ned7 {[%clk 0:01:37.6]} 18.
Rxe8+ {[%clk 0:01:58.5]} 18... Rxe8 {[%clk 0:01:36.7]} 19. g4 {[%clk 0:01:59.4]}
19... Qb6+ {[%clk 0:01:32.7]} 20. d4 {[%clk 0:01:53.4]} 20... Bg6 {[%clk
0:01:25.6]} 21. f5 {[%clk 0:01:52.9]} 21... Bh5 {[%clk 0:01:25.3]} 22. gxh5
{[%clk 0:01:49.9]} 22... Nxh5 {[%clk 0:01:25.1]} 23. Qd1 {[%clk 0:01:44.4]}
23... Ndf6 {[%clk 0:01:21.5]} 24. Re1 {[%clk 0:01:43.6]} 24... Qd8 {[%clk
0:01:04.3]} 25. Re5 {[%clk 0:01:38.5]} 25... Nf4 {[%clk 0:00:55.7]} 26. Qf3
{[%clk 0:01:29.7]} 26... N6h5 {[%clk 0:00:52.9]} 27. Nf1 {[%clk 0:01:21.3]}
27... f6 {[%clk 0:00:47]} 28. Rxe8+ {[%clk 0:01:18.8]} 28... Qxe8 {[%clk
0:00:47.6]} 29. Qe3 {[%clk 0:00:59.6]} 29... Qc8 {[%clk 0:00:39.7]} 30. Ng3
{[%clk 0:00:56.6]} 30... Nxg3 {[%clk 0:00:35.1]} 31. Bf3 {[%clk 0:00:44.8]}
31... Nxh3+ {[%clk 0:00:28.5]} 32. Kh2 {[%clk 0:00:16.8]} 32... Nf1+ {[%clk
0:00:25.3]} 0-1